Workbook

Sheet Query
B1: Input | C1: Yearly Amount | D1: 10000
C2: Rate of Interest | D2: 0.07
C3: No of Years | D3: 8
C6: Principals Paid | D6: Interest | E6: Total
B7: Total Return | C7: =SUBTOTAL(9,C11:C18) -> 80000 | D7: =SUBTOTAL(9,D11:D18) -> 29779.88 | E7: =C7+D7 -> 109779.88
A10: Year | B10: Opening | C10: Add | D10: Interest | E10: Total
A11: 1 | B11: 0 | C11: 10000 | D11: =ROUND(C11*$D$2,2) -> 700 | E11: =ROUND(C11+D11,2) -> 10700
A12: 2 | B12: =+E11 -> 10700 | C12: =+C11 -> 10000 | D12: =ROUND((C12+B12)*$D$2,2) -> 1449 | E12: =ROUND(B12+C12+D12,2) -> 22149
A13: 3 | B13: =+E12 -> 22149 | C13: =+C12 -> 10000 | D13: =ROUND((C13+B13)*$D$2,2) -> 2250.43 | E13: =ROUND(B13+C13+D13,2) -> 34399.43
A14: 4 | B14: 34399.43 | C14: 10000 | D14: =ROUND((C14+B14)*$D$2,2) -> 3107.96 | E14: 47507.39
A15: 5 | B15: 47507.39 | C15: 10000 | D15: =ROUND((C15+B15)*$D$2,2) -> 4025.52 | E15: 61532.91
A16: 6 | B16: 61532.91 | C16: 10000 | D16: =ROUND((C16+B16)*$D$2,2) -> 5007.3 | E16: 76540.21
A17: 7 | B17: 76540.21 | C17: 10000 | D17: =ROUND((C17+B17)*$D$2,2) -> 6057.81 | E17: 92598.02
A18: 8 | B18: 92598.02 | C18: 10000 | D18: =ROUND((C18+B18)*$D$2,2) -> 7181.86 | E18: 109779.88
B21: Total | C21: =SUM(C11:C20) -> 80000 | D21: =SUM(D11:D20) -> 29779.88

Sheet Sheet1
B3: Respected All Excel Guru's
B5: In my attached file I want that in D3 column if I change years
B6: i.e. -- if I write 10 Years then automatically
B7: 10 Years calculation done
B9: that is it calculate from raw 11 to 20 & show final in total
B11: The same way it automatically caluclate what ever we put value
B13: If we put 20 years . It shows for 21 Years
B16: Thanks a lot & have a nice day to all
B20: Interest calculation as per we put years in -- D3
